fUSD/lending_fUSD_20250212
["ID","MTS","AMOUNT","RATE_DAILY","PERIOD"]
[352885968,1739389838070,-500.0,0.00016438,2]
[352885970,1739389838080,-500.0,0.00016438,2]
[352885972,1739389838090,-500.0,0.00016438,2]
[352885974,1739389838100,-500.0,0.00016438,2]
[352885976,1739389838110,-500.0,0.00016438,2]
[352885978,1739389838120,-500.0,0.00016438,2]
[352885980,1739389838129,-500.0,0.00016438,2]
[352885982,1739389838139,-500.0,0.00016438,2]
[352885984,1739389838149,-500.0,0.00016438,2]
[352885986,1739389838159,-500.0,0.00016438,2]
[352885988,1739389838169,-500.0,0.00016438,2]
[352885990,1739389838179,-500.0,0.00016438,2]
[352885992,1739389838188,-500.0,0.00016438,2]
[352885994,1739389838198,-500.0,0.00016438,2]
[352885996,1739389838207,-500.0,0.00016438,2]
[352885998,1739389838217,-500.0,0.00016438,2]
[352886000,1739389838227,-500.0,0.00016438,2]
[352886002,1739389838236,-300.0,0.00016438,2]
[352886004,1739389838246,-500.0,0.00016438,2]
[352886006,1739389838256,-500.0,0.00016438,2]
[352886008,1739389838265,-500.0,0.00016438,2]
[352886010,1739389838275,-507.68817763,0.00016438,2]
[352886012,1739389838284,-593.93,0.00016438,2]
[352886014,1739389838294,-501.73659797,0.00016438,2]
[352886016,1739389838304,-500.0,0.00016438,2]
[352886018,1739389838313,-500.0,0.00016438,2]
[352886020,1739389838323,-500.0,0.00016438,2]
[352886022,1739389838334,-500.0,0.00016438,2]
[352886024,1739389838344,-500.0,0.00016438,2]
[352886026,1739389838355,-500.0,0.00016438,2]
[352886028,1739389838364,-500.0,0.00016438,2]
[352886030,1739389838374,-500.0,0.00016438,2]
[352886032,1739389838383,-500.0,0.00016438,2]
[352886034,1739389838393,-500.0,0.00016438,2]
[352886036,1739389838404,-500.0,0.00016438,2]
[352886038,1739389838414,-500.0,0.00016438,2]
[352886040,1739389838423,-503.69106628,0.00016438,2]
[352886042,1739389838433,-500.0,0.00016438,2]
[352886044,1739389838442,-500.0,0.00016438,2]
[352886046,1739389838452,-500.0,0.00016438,2]
[352886048,1739389838461,-500.0,0.00016438,2]
[352886050,1739389838471,-500.0,0.00016438,2]
[352886052,1739389838480,-500.0,0.00016438,2]
[352886054,1739389838490,-291.93203344,0.00016438,2]
[352886056,1739389838499,-500.0,0.00016438,2]
[352886058,1739389838509,-500.0,0.00016438,2]
[352886061,1739389838523,-500.0,0.00016438,2]
[352886063,1739389838532,-357.7146739,0.00016438,2]
[352886065,1739389838542,-500.0,0.00016438,2]
[352886067,1739389838551,-500.0,0.00016438,2]
[352886069,1739389838560,-500.0,0.00016438,2]
[352886071,1739389838569,-500.0,0.00016438,2]
[352886073,1739389838579,-500.0,0.00016438,2]
[352886075,1739389838589,-311.51422001,0.00016438,2]
[352886077,1739389838599,-531.6808842,0.00016438,2]
[352886079,1739389838610,-500.0,0.00016438,2]
[352886081,1739389838620,-500.0,0.00016438,2]
[352886083,1739389838629,-500.0,0.00016438,2]
[352886085,1739389838640,-150.827336,0.00016438,2]
[352886087,1739389838649,-500.0,0.00016438,2]
[352886089,1739389838661,-500.0,0.00016438,2]
[352886091,1739389838672,-599.05,0.00016438,2]
[352886093,1739389838682,-164.56502268,0.00016438,2]
[352886095,1739389838691,-1918.36125332,0.00016444,2]
[352886097,1739389838700,-297.40472438,0.00016447,2]
[352886100,1739389838710,-355.42363466,0.00016447,2]
[352886102,1739389838720,-1918.36125332,0.00016451,2]
[352886104,1739389838729,-2284.54018607,0.00016457,2]
[352886106,1739389838740,-383.53960091,0.00016457,2]
[352886108,1739389838751,-1918.36125332,0.00016457,2]
[352886110,1739389838761,-173.21807434,0.00016457,2]
[352886112,1739389838771,-182.55585707,0.00016457,2]
[352886114,1739389838780,-2957.19526386,0.00016457,2]
[352886116,1739389838790,-22148.36646035,0.00016457,2]
[352886118,1739389838799,-502.25288465,0.00016473,2]
[352886120,1739389838809,-500.0,0.00016473,2]
[352886122,1739389838818,-307.1734335,0.00016473,2]
[352886124,1739389838827,-454.95833382,0.00016473,2]
[352886126,1739389838837,-151.4421322,0.00016473,2]
[352886128,1739389838847,-205.09199746,0.00016473,2]
[352886130,1739389838856,-300.0,0.00016493,2]
[352886132,1739389838866,-150.0,0.00016493,2]
[352886134,1739389838875,-262.66,0.00016493,2]
[352886136,1739389838885,-1036.5,0.00016493,2]
[352886138,1739389838894,-438.88,0.00016493,2]
[352886140,1739389838904,-438.88,0.00016493,2]
[352886142,1739389838914,-438.88,0.00016493,2]
[352886144,1739389838923,-519.3615425,0.00016498,2]
[352886146,1739389838933,-500.0,0.00016498,2]
[352886148,1739389838943,-491.22490177,0.00016498,2]
[352886150,1739389838953,-501.87629249,0.00016498,2]
[352886152,1739389838962,-316.2128447,0.00016498,2]
[352886154,1739389838971,-500.0,0.00016498,2]
[352886156,1739389838981,-500.0,0.00016498,2]
[352886158,1739389838995,-500.0,0.00016498,2]
[352886160,1739389839005,-512.2693104,0.00016498,2]
[352886162,1739389839014,-500.0,0.00016498,2]
[352886164,1739389839024,-500.0,0.00016498,2]
[352886166,1739389839033,-499.99999999,0.00016498,2]
[352886168,1739389839043,-500.0,0.00016498,2]
[352886170,1739389839053,-500.0,0.00016498,2]
[352886172,1739389839063,-500.0,0.00016498,2]
[352886174,1739389839072,-500.0,0.00016498,2]
[352886176,1739389839082,-500.0,0.00016498,2]
[352886178,1739389839091,-500.0,0.00016498,2]
[352886180,1739389839101,-500.0,0.00016498,2]
[352886182,1739389839110,-500.0,0.00016498,2]
[352886184,1739389839120,-500.0,0.00016498,2]
[352886186,1739389839129,-500.0,0.00016498,2]
[352886188,1739389839139,-500.0,0.00016498,2]
[352886190,1739389839148,-500.0,0.00016498,2]
[352886192,1739389839158,-500.0,0.00016498,2]
[352886194,1739389839167,-500.0,0.00016498,2]
[352886196,1739389839177,-500.0,0.00016498,2]
[352886198,1739389839186,-500.0,0.00016498,2]
[352886201,1739389839198,-500.0,0.00016498,2]
[352886203,1739389839207,-500.0,0.00016498,2]
[352886205,1739389839217,-500.0,0.00016498,2]
[352886207,1739389839227,-192.24,0.00016498,2]
[352886208,1739389839236,-500.0,0.00016498,2]
[352886210,1739389839246,-500.0,0.00016498,2]
[352886213,1739389839256,-500.0,0.00016498,2]
[352886214,1739389839265,-275.88,0.00016498,2]
[352886217,1739389839275,-500.0,0.00016498,2]
[352886219,1739389839285,-583.8,0.00016498,2]
[352886222,1739389839294,-500.0,0.00016498,2]
[352886225,1739389839304,-500.0,0.00016498,2]
[352886227,1739389839313,-500.0,0.00016498,2]
[352886230,1739389839323,-177.7,0.00016498,2]
[352886232,1739389839332,-500.0,0.00016498,2]
[352886234,1739389839342,-500.0,0.00016498,2]
[352886236,1739389839351,-500.0,0.00016498,2]
[352886238,1739389839360,-500.0,0.00016498,2]
[352886240,1739389839372,-500.0,0.00016498,2]
[352886242,1739389839380,-500.0,0.00016498,2]
[352886244,1739389839390,-389.23727,0.00016498,2]
[352886246,1739389839399,-500.0,0.00016498,2]
[352886248,1739389839408,-500.0,0.00016498,2]
[352886250,1739389839418,-500.0,0.00016498,2]
[352886252,1739389839427,-500.0,0.00016498,2]
[352886254,1739389839437,-500.0,0.00016498,2]
[352886256,1739389839447,-500.0,0.00016498,2]
[352886258,1739389839459,-500.0,0.00016498,2]
[352886260,1739389839468,-500.0,0.00016498,2]
[352886261,1739389839478,-242.1,0.00016498,2]
[352886262,1739389839487,-500.0,0.00016498,2]
[352886263,1739389839496,-500.0,0.00016498,2]
[352886265,1739389839506,-35247.33516979,0.00016499,7]
[352886266,1739389839516,-312.38,0.00016499,2]
[352886267,1739389839525,-539.91,0.00016499,2]
[352886268,1739389839535,-450.16,0.00016499,2]
[352886269,1739389839544,-500.0,0.00016499,2]
[352886270,1739389839554,-272.32,0.00016499,2]
[352886272,1739389839564,-500.0,0.00016499,2]
[352886274,1739389839573,-625.8,0.00016499,2]
[352886276,1739389839583,-567.07,0.00016499,2]
[352886278,1739389839593,-500.0,0.00016499,2]
[352886280,1739389839602,-500.0,0.00016499,2]
[352886282,1739389839612,-162.45,0.00016499,2]
[352886284,1739389839622,-500.0,0.00016499,2]
[352886286,1739389839631,-500.0,0.00016499,2]
[352886288,1739389839641,-500.0,0.00016499,2]
[352886290,1739389839650,-618.44,0.00016499,2]
[352886292,1739389839659,-500.0,0.00016499,2]
[352886294,1739389839672,-534.58,0.00016499,2]
[352886296,1739389839682,-500.0,0.00016499,2]
[352886298,1739389839692,-171.09,0.00016499,2]
[352886300,1739389839702,-151.15,0.00016499,2]
[352886302,1739389839713,-573.18,0.00016499,2]
[352886304,1739389839722,-593.7,0.00016499,2]
[352886306,1739389839732,-348.24,0.00016499,2]
[352886308,1739389839742,-500.0,0.00016499,2]
[352886310,1739389839754,-500.0,0.00016499,2]
[352886312,1739389839764,-500.0,0.00016499,2]
[352886314,1739389839774,-500.0,0.00016499,2]
[352886316,1739389839783,-500.0,0.00016499,2]
[352886318,1739389839793,-179.73,0.00016499,2]
[352886320,1739389839802,-500.0,0.00016499,2]
[352886322,1739389839812,-500.0,0.00016499,2]
[352886324,1739389839821,-265.19,0.00016499,2]
[352886326,1739389839831,-500.0,0.00016499,2]
[352886328,1739389839841,-496.56,0.00016499,2]
[352886330,1739389839851,-481.89,0.00016499,2]
[352886332,1739389839861,-202.88,0.00016499,2]
[352886335,1739389839872,-223.02,0.00016499,2]
[352886337,1739389839881,-612.62,0.00016499,2]
[352886339,1739389839891,-500.0,0.00016499,2]
[352886341,1739389839900,-500.0,0.00016499,2]
[352886343,1739389839911,-500.0,0.00016499,2]
[352886345,1739389839920,-500.0,0.00016499,2]
[352886347,1739389839930,-503.5064233,0.00016499,2]
[352886349,1739389839939,-232.38,0.00016499,2]
[352886351,1739389839949,-500.0,0.00016499,2]
[352886353,1739389839959,-220.07,0.00016499,2]
[352886355,1739389839968,-500.0,0.00016499,2]
[352886357,1739389839978,-500.0,0.00016499,2]
[352886359,1739389839987,-500.0,0.00016499,2]
[352886361,1739389839997,-206.28,0.00016499,2]
[352886363,1739389840007,-500.0,0.00016499,2]
[352886365,1739389840016,-500.0,0.00016499,2]
[352886367,1739389840025,-500.0,0.00016499,2]
[352886369,1739389840035,-500.0,0.00016499,2]
[352886370,1739389840044,-500.0,0.00016499,2]
[352886371,1739389840054,-500.0,0.00016499,2]
[352886372,1739389840064,-500.0,0.00016499,2]
[352886373,1739389840074,-433.64991282,0.00016499,2]
[352886374,1739389840083,-165.65,0.00016499,2]
[352886375,1739389840093,-205.80324334,0.00016499,2]
[352886376,1739389840103,-178.64,0.00016499,2]
[352886377,1739389840112,-500.0,0.00016499,2]
[352886378,1739389840122,-500.0,0.00016499,2]
[352886379,1739389840131,-500.0,0.00016499,2]
[352886381,1739389840141,-372.34,0.00016499,2]
[352886383,1739389840150,-399.94,0.00016499,2]
[352886385,1739389840161,-491.9,0.00016499,2]
[352886386,1739389840170,-500.0,0.00016499,2]
[352886387,1739389840180,-500.0,0.00016499,2]
[352886388,1739389840190,-500.0,0.00016499,2]
[352886389,1739389840199,-500.0,0.00016499,2]
[352886390,1739389840210,-500.0,0.00016499,2]
[352886391,1739389840220,-500.0,0.00016499,2]
[352886392,1739389840229,-534.14,0.00016499,2]
[352886393,1739389840239,-500.0,0.00016499,2]
[352886394,1739389840248,-355.54,0.00016499,2]
[352886395,1739389840259,-500.0,0.00016499,2]
[352886396,1739389840268,-500.0,0.00016499,2]
[352886397,1739389840278,-500.0,0.00016499,2]
[352886398,1739389840288,-382.79,0.00016499,2]
[352886399,1739389840298,-500.0,0.00016499,2]
[352886400,1739389840307,-200.0,0.00016499,2]
[352886401,1739389840316,-500.0,0.00016499,2]
[352886402,1739389840326,-500.0,0.00016499,2]
[352886404,1739389840335,-500.0,0.00016499,2]
[352886406,1739389840345,-500.0,0.00016499,2]
[352886408,1739389840355,-500.0,0.00016499,2]
[352886410,1739389840364,-500.0,0.00016499,2]
[352886412,1739389840373,-500.0,0.00016499,2]
[352886414,1739389840383,-500.0,0.00016499,2]
[352886416,1739389840393,-224.30821652,0.00016499,2]
[352886418,1739389840410,-275.69178348,0.00016499,2]
[352886420,1739389840420,-436.76,0.00016499,2]
[352886422,1739389840429,-500.0,0.00016499,2]
[352886424,1739389840438,-500.0,0.00016499,2]
[352886426,1739389840448,-500.0,0.00016499,2]
[352886428,1739389840457,-500.0,0.00016499,2]
[352886430,1739389840468,-500.0,0.00016499,2]
[352886432,1739389840477,-2677.09,0.00016499,2]
[352886434,1739389840487,-500.0,0.00016499,2]
[352886436,1739389840497,-500.0,0.00016499,2]
[352886438,1739389840506,-500.0,0.00016499,2]
[352886440,1739389840516,-500.0,0.00016499,2]
[352886443,1739389840527,-500.0,0.00016499,2]
[352886445,1739389840536,-500.0,0.00016499,2]
[352886447,1739389840547,-500.0,0.00016499,2]
[352886449,1739389840557,-500.0,0.00016499,2]
[352886451,1739389840567,-500.0,0.00016499,2]
[352886453,1739389840576,-500.0,0.00016499,2]
[352886455,1739389840586,-442.99,0.00016499,2]
[352886457,1739389840597,-500.0,0.00016499,2]
[352886459,1739389840606,-500.0,0.00016499,2]
[352886461,1739389840615,-282.75,0.00016499,2]
[352886463,1739389840625,-509.12660482,0.00016499,2]
[352886465,1739389840634,-500.0,0.00016499,2]
[352886467,1739389840644,-500.0,0.00016499,2]
[352886469,1739389840654,-500.0,0.00016499,2]
[352886471,1739389840664,-500.0,0.00016499,2]
[352886473,1739389840676,-198.11,0.00016499,2]
[352886475,1739389840685,-500.0,0.00016499,2]
[352886477,1739389840695,-581.53,0.00016499,2]
[352886479,1739389840704,-500.0,0.00016499,2]
[352886481,1739389840715,-500.0,0.00016499,2]
[352886483,1739389840724,-500.0,0.00016499,2]
[352886485,1739389840734,-228.01,0.00016499,2]
[352886487,1739389840744,-291.27991217,0.00016499,2]
[352886489,1739389840755,-555.26,0.00016499,2]
[352886491,1739389840765,-500.0,0.00016499,2]
[352886493,1739389840775,-500.0,0.00016499,2]
[352886495,1739389840784,-500.0,0.00016499,2]
[352886497,1739389840794,-500.0,0.00016499,2]
[352886499,1739389840804,-500.0,0.00016499,2]
[352886501,1739389840813,-1200.0,0.00016499,2]
[352886503,1739389840822,-571.23,0.00016499,2]
[352886505,1739389840832,-341.57,0.00016499,2]
[352886507,1739389840842,-500.0,0.00016499,2]
[352886509,1739389840852,-500.0,0.00016499,2]
[352886511,1739389840862,-500.0,0.00016499,2]
[352886513,1739389840871,-500.0,0.00016499,2]
[352886515,1739389840882,-500.0,0.00016499,2]
[352886517,1739389840891,-501.73326854,0.00016499,2]
[352886519,1739389840901,-500.0,0.00016499,2]
[352886521,1739389840912,-540.64,0.00016499,2]
[352886523,1739389840922,-500.0,0.00016499,2]
[352886525,1739389840931,-500.0,0.00016499,2]
[352886527,1739389840941,-500.0,0.00016499,2]
[352886529,1739389840951,-175854.50968644,0.000165,2]
[352886531,1739389840960,-983.5353724,0.00016547,2]
[352886533,1739389840970,-983.5353724,0.00016547,2]
[352886535,1739389840979,-983.5353724,0.00016547,2]
[352886537,1739389840988,-494.41,0.00016556,2]
[352886539,1739389840998,-500.0,0.00016556,2]
[352886541,1739389841008,-500.0,0.00016556,2]
[352886543,1739389841017,-500.0,0.00016556,2]
[352886545,1739389841026,-500.0,0.00016556,2]
[352886547,1739389841035,-500.0,0.00016556,2]
[352886549,1739389841045,-500.0,0.00016556,2]
[352886551,1739389841054,-500.0,0.00016556,2]
[352886553,1739389841064,-250.68,0.00016556,2]
[352886555,1739389841073,-1036.01,0.00016556,2]
[352886557,1739389841083,-150.0,0.00016556,2]
[352886559,1739389841092,-1592.25537209,0.00016557,2]
[352886561,1739389841102,-132075.64253029,0.00016557,3]
[352886563,1739389841112,-2496982.29360607,0.00016557,5]
[352886565,1739389841125,-2380.87167549,0.00016557,5]
[352886567,1739389841136,-1527.6793611,0.00016557,5]
[352886569,1739389841147,-1025.0,0.00016557,5]
[352886572,1739389841160,-5535.40034938,0.00016557,5]
[352886574,1739389841172,-643.515,0.00016557,5]
[352886576,1739389841184,-384.47,0.00016557,5]
[352886578,1739389841196,-2584.24659557,0.00016557,5]
[352886580,1739389841208,-120940.21010253,0.00016557,5]
[352886581,1739389841220,-734.09,0.00016557,5]
[352886582,1739389841241,-611.26363651,0.00016557,5]
[352886583,1739389841253,-15000.0,0.00016557,5]
[352886584,1739389841265,-19603.8,0.00016557,5]
[352886585,1739389841281,-10006.57979904,0.00016557,5]
[352886587,1739389841294,-448.49998,0.00016557,5]
[352886604,1739389841453,-266713.549,0.00016557,5]
[352886606,1739389841465,-3009.39221792,0.00016557,5]
[352886609,1739389841481,-245921.19155851,0.00016557,5]
[352886611,1739389841492,-329445.06308734,0.00016557,5]
[352886613,1739389841503,-1951.41788,0.00016557,5]
[352886616,1739389841515,-502.93739618,0.00016557,5]
[352886618,1739389841526,-409.35371823,0.00016557,5]
[352886620,1739389841538,-380.43,0.00016557,5]
[352886625,1739389841570,-37691.22655269,0.00016557,5]
[352886628,1739389841594,-24104.6103854,0.00016557,5]
[352886631,1739389841610,-738.91631865,0.00016557,5]
[352886633,1739389841621,-19063.35960329,0.00016557,5]
[352886635,1739389841632,-841.89105,0.00016557,5]
[352886638,1739389841645,-2068.63438604,0.00016557,5]
[352886640,1739389841657,-2395.98,0.00016557,5]
[352886642,1739389841673,-659.36071556,0.00016557,5]
[352886644,1739389841684,-16137.46994315,0.00016557,5]
[352886647,1739389841699,-582.983,0.00016557,5]
[352886649,1739389841712,-267.90825,0.00016557,5]
[352886651,1739389841723,-3443.6700847,0.00016557,5]
[352886654,1739389841739,-537.640002,0.00016557,5]
[352886656,1739389841752,-6048.00908869,0.00016557,5]
[352886658,1739389841763,-512.27802841,0.00016557,5]
[352886661,1739389841775,-386.08057381,0.00016557,5]
[352886663,1739389841788,-901.40924066,0.00016557,5]
[352886667,1739389841816,-1508.70183977,0.00016557,5]
[352886756,1739389842602,-500.0,0.00016499,2]
[352886758,1739389842612,-49009.51975622,0.00016557,5]
[352886760,1739389842624,-1547.87352308,0.00016557,5]
[352886765,1739389842654,-149384.90644116,0.00016557,5]
[352886767,1739389842669,-8423.89999999,0.00016557,5]
[352886769,1739389842681,-112183.72204213,0.00016557,5]
[352886771,1739389842693,-2072.9767218,0.00016557,5]
[352886774,1739389842704,-2568.75481671,0.00016557,5]
[352886776,1739389842717,-11511.28316653,0.00016557,5]
[352886778,1739389842729,-1430.30668109,0.00016557,5]
[352886780,1739389842740,-18407.95360061,0.00016557,5]
[352886797,1739389842900,-5279.66958379,0.00016557,5]
[352886799,1739389842915,-178388.25926071,0.00016557,5]
[352886801,1739389842926,-837.52681129,0.00016557,5]
[352886802,1739389842938,-15025.0000001,0.00016557,5]
[352886803,1739389842950,-2478.99320444,0.00016557,5]
[352886804,1739389842962,-1800.0,0.00016557,5]
[352886805,1739389842974,-4742.58430402,0.00016557,5]
[352886806,1739389842987,-12220.0,0.00016557,5]
[352886807,1739389842999,-929.44218597,0.00016557,5]
[352886809,1739389843011,-500.0,0.00016557,5]
[352886811,1739389843023,-13971.54842521,0.00016557,5]
[352886813,1739389843035,-10578.22555805,0.00016557,5]
[352886815,1739389843047,-9837.67838884,0.00016557,5]
[352886817,1739389843059,-340.46258371,0.00016557,5]
[352887067,1739389845608,-222.17780059,0.00016457,2]
[352887069,1739389845619,-500.0,0.00016499,2]
[352887071,1739389845628,-500.0,0.00016499,2]
[352887073,1739389845638,-1777.82219891,0.00016557,5]
[352887075,1739389845650,-2664.999995,0.00016557,5]
[352887077,1739389845664,-15727.2400482,0.00016557,5]
[352887079,1739389845680,-11502.03014575,0.00016557,5]
[352887082,1739389845692,-3950.78810474,0.00016557,5]
[352887084,1739389845703,-253.37492,0.00016557,5]
[352887086,1739389845717,-349.87046341,0.00016557,5]
[352887088,1739389845728,-308.52858885,0.00016557,5]
[352887090,1739389845740,-343.82486544,0.00016557,5]
[352887093,1739389845752,-1078.91784,0.00016557,5]
[352887096,1739389845771,-263.258183,0.00016557,5]
[352887098,1739389845782,-8958.76946894,0.00016557,5]
[352887100,1739389845794,-2951.52409575,0.00016557,5]
[352887104,1739389845824,-1131.1209526,0.00016557,5]
[352887111,1739389845879,-2434.7847145,0.00016557,5]
[352887113,1739389845891,-5199.88223325,0.00016557,5]
[352887115,1739389845903,-1484.73048015,0.00016557,5]
[352887119,1739389845933,-5604.53438438,0.00016557,5]
[352887121,1739389845945,-7291.24004943,0.00016557,5]
[352887217,1739390185634,5000.0,0.0002,120]
[352887218,1739390483156,3081.10534089,0.00020656,120]
[352887250,1739391031782,-393.04398086,8.973e-05,2]
[352887251,1739391031795,-24118.01255484,8.973e-05,2]
[352887252,1739391031807,-583.92895795,8.973e-05,2]
[352887253,1739391031820,-5429.36626318,8.973e-05,2]
[352887254,1739391031834,-5898.70911555,8.973e-05,2]
[352887255,1739391031890,-1414.75,8.973e-05,2]
[352887256,1739391031902,-1569.56510515,8.973e-05,2]
[352887257,1739391031914,-412.40818989,8.973e-05,2]
[352887258,1739391031945,-1144.45132589,8.973e-05,2]
[352887259,1739391032005,-20953.71900669,8.973e-05,2]
[352887260,1739391032015,-151.81,0.00010137,2]
[352887261,1739391032026,-550.0,0.00013,2]
[352887262,1739391032036,-500.0,0.00013781,2]
[352887263,1739391032046,-787.69,0.00013793,2]
[352887264,1739391032056,-204.35960509,0.00014893,2]
[352887265,1739391032066,-150.0,0.00014893,2]
[352887266,1739391032080,-150.0,0.00015,2]
[352887267,1739391032090,-600.0,0.00015,2]
[352887268,1739391032101,-165.61,0.00015277,2]
[352887269,1739391032111,-250.0,0.00015322,2]
[352887270,1739391032123,-200.0,0.00015382,2]
[352887271,1739391032132,-542.27,0.00015412,2]
[352887272,1739391032143,-9000.9,0.00015537,2]
[352887273,1739391032155,-1000.0,0.00015552,2]
[352887274,1739391032166,-285.8,0.00015611,2]
[352887275,1739391032177,-444.04,0.00015781,2]
[352887276,1739391032187,-439.89,0.00015781,2]
[352887277,1739391032197,-439.89,0.00015781,2]
[352887278,1739391032207,-178.83,0.00015781,2]
[352887279,1739391032216,-787.69,0.00016057,2]
[352887280,1739391032226,-1093.6251429,0.00016225,2]
[352887281,1739391032235,-1342.85287736,0.00016399,2]
[352887282,1739391032245,-1342.85287732,0.00016405,2]
[352887283,1739391032255,-1342.85287732,0.00016412,2]
[352887284,1739391032265,-1342.85287732,0.00016418,2]
[352887285,1739391032275,-500.0,0.00016425,2]
[352887286,1739391032286,-500.0,0.00016425,2]
[352887287,1739391032297,-200.0,0.00016425,2]
[352887288,1739391032307,-1342.85287732,0.00016425,2]
[352887289,1739391032317,-1342.85287732,0.00016431,2]
[352887290,1739391032327,-1342.85287732,0.00016438,2]
[352887291,1739391032338,-1342.85287732,0.00016444,2]
[352887292,1739391032347,-1342.85287732,0.00016451,2]
[352887293,1739391032357,-328.39272018,0.00016456,2]
[352887294,1739391032367,-1677.24118258,0.00016457,3]
[352887295,1739391032378,-1677.24118258,0.00016457,3]
[352887297,1739391032387,-1342.85287732,0.00016457,2]
[352887299,1739391032397,-300.27,0.00016466,2]
[352887301,1739391032408,-438.84,0.00016466,2]
[352887303,1739391032417,-500.0,0.00016498,2]
[352887305,1739391032427,-500.0,0.00016498,2]
[352887307,1739391032438,-608.43453207,0.00016498,2]
[352887309,1739391032448,-500.0,0.00016498,2]
[352887311,1739391032457,-500.0,0.00016498,2]
[352887313,1739391032467,-500.0,0.00016498,2]
[352887336,1739391032677,-500.0,0.00016498,2]
[352887338,1739391032688,-500.0,0.00016498,2]
[352887340,1739391032698,-500.0,0.00016498,2]
[352887342,1739391032708,-500.0,0.00016498,2]
[352887344,1739391032718,-500.0,0.00016498,2]
[352887346,1739391032728,-500.0,0.00016498,2]
[352887348,1739391032737,-500.0,0.00016498,2]
[352887350,1739391032749,-563.44863153,0.00016498,2]
[352887352,1739391032758,-500.0,0.00016498,2]
[352887354,1739391032768,-500.0,0.00016498,2]
[352887356,1739391032777,-500.0,0.00016498,2]
[352887358,1739391032787,-500.0,0.00016498,2]
[352887360,1739391032797,-500.0,0.00016498,2]
[352887362,1739391032807,-500.0,0.00016498,2]
[352887364,1739391032817,-525.71,0.00016498,2]
[352887366,1739391032827,-500.0,0.00016498,2]
[352887368,1739391032836,-500.0,0.00016498,2]
[352887370,1739391032846,-500.0,0.00016498,2]
[352887372,1739391032855,-500.0,0.00016498,2]
[352887374,1739391032865,-500.0,0.00016498,2]
[352887376,1739391032874,-500.0,0.00016498,2]
[352887378,1739391032884,-500.0,0.00016498,2]
[352887380,1739391032894,-500.0,0.00016498,2]
[352887382,1739391032904,-500.0,0.00016498,2]
[352887384,1739391032913,-500.0,0.00016498,2]
[352887386,1739391032923,-594.24,0.00016498,2]
[352887388,1739391032933,-500.0,0.00016498,2]
[352887390,1739391032943,-500.0,0.00016498,2]
[352887392,1739391032953,-500.0,0.00016498,2]
[352887394,1739391032963,-500.0,0.00016498,2]
[352887396,1739391032973,-500.0,0.00016498,2]
[352887398,1739391032982,-501.35106964,0.00016499,2]
[352887400,1739391032992,-500.0,0.00016499,2]
[352887402,1739391033002,-221.0456427,0.00016499,2]
[352887404,1739391033011,-500.0,0.00016499,2]
[352887406,1739391033021,-502.23520174,0.00016499,2]
[352887408,1739391033031,-500.0,0.00016499,2]
[352887410,1739391033041,-510.89973778,0.00016499,2]
[352887412,1739391033051,-201.90276561,0.00016499,2]
[352887414,1739391033062,-200.98675695,0.00016499,2]
[352887416,1739391033071,-500.0,0.00016499,2]
[352887418,1739391033085,-500.0,0.00016499,2]
[352887420,1739391033095,-500.0,0.00016499,2]
[352887422,1739391033105,-500.0,0.00016499,2]